{"text_format":"1","workbook":"xlsx","n_sheets":8,"sheets":["Deckblatt","Daten","Selbsteinschätzung","Fremdeinschätzung","Wohnen","Gesundheit","Alltagswissen & Bildung","Gesellschaftliches Leben"],"not_rendered":{"charts":12,"images":1,"macros":1,"external_links":0,"defined_names":2,"comments":0,"pivot_tables":0},"unopened":[{"sheet":"Selbsteinschätzung","index":2,"reason":"not_a_worksheet"},{"sheet":"Fremdeinschätzung","index":3,"reason":"not_a_worksheet"},{"sheet":"Wohnen","index":4,"reason":"not_a_worksheet"},{"sheet":"Gesundheit","index":5,"reason":"not_a_worksheet"},{"sheet":"Alltagswissen & Bildung","index":6,"reason":"not_a_worksheet"},{"sheet":"Gesellschaftliches Leben","index":7,"reason":"not_a_worksheet"}],"bounds":{"document_bytes":16777216,"sheet_cells":100000,"rows_first":2000,"rows_last":500,"rows_between":2000,"halvings":0,"cell_chars":16384,"cell_head_chars":4096},"cells_cut":0,"cells_raw":0,"read":"whole","date_system":"1900"}

{"sheet":"Deckblatt","index":0,"n_rows":14,"n_cols":1,"rows_kept":14,"cut":false,"hidden":false,"merged":[[3,0,3,1]]}
[]
[]
[]
[]
[]
[]
[]
[]
[]
[]
[]
[]
[]
["Kundenname,\n-nummer oder -kürzel:"]

{"sheet":"Daten","index":1,"n_rows":52,"n_cols":11,"rows_kept":52,"cut":false,"hidden":false,"merged":[[0,2,0,5],[0,6,0,9],[0,1,1,1],[0,0,1,0]]}
["Erhe-bungs-\nnummer","Erhe-\nbungs-datum","Selbsteinschätzung",null,null,null,"Fremdeinschätzung"]
[null,null,"Wohnen","Gesundheit","Alltagswissen und Bildung","Gesellschaftliches Leben","Wohnen","Gesundheit","Alltagswissen und Bildung","Gesellschaftliches Leben","x"]
[1,null,null,null,null,null,null,null,null,null,{"$f":"IF(ISBLANK(B3),\"\",0)","v":""}]
[2,null,null,null,null,null,null,null,null,null,""]
[3,null,null,null,null,null,null,null,null,null,""]
[4,null,null,null,null,null,null,null,null,null,""]
[5,null,null,null,null,null,null,null,null,null,""]
[6,null,null,null,null,null,null,null,null,null,""]
[7,null,null,null,null,null,null,null,null,null,""]
[8,null,null,null,null,null,null,null,null,null,""]
[9,null,null,null,null,null,null,null,null,null,""]
[10,null,null,null,null,null,null,null,null,null,""]
[11,null,null,null,null,null,null,null,null,null,""]
[12,null,null,null,null,null,null,null,null,null,""]
[13,null,null,null,null,null,null,null,null,null,""]
[14,null,null,null,null,null,null,null,null,null,""]
[15,null,null,null,null,null,null,null,null,null,""]
[16,null,null,null,null,null,null,null,null,null,""]
[17,null,null,null,null,null,null,null,null,null,""]
[18,null,null,null,null,null,null,null,null,null,""]
[19,null,null,null,null,null,null,null,null,null,""]
[20,null,null,null,null,null,null,null,null,null,""]
[21,null,null,null,null,null,null,null,null,null,""]
[22,null,null,null,null,null,null,null,null,null,""]
[23,null,null,null,null,null,null,null,null,null,""]
[24,null,null,null,null,null,null,null,null,null,""]
[25,null,null,null,null,null,null,null,null,null,""]
[26,null,null,null,null,null,null,null,null,null,""]
[27,null,null,null,null,null,null,null,null,null,""]
[28,null,null,null,null,null,null,null,null,null,""]
[29,null,null,null,null,null,null,null,null,null,""]
[30,null,null,null,null,null,null,null,null,null,""]
[31,null,null,null,null,null,null,null,null,null,""]
[32,null,null,null,null,null,null,null,null,null,""]
[33,null,null,null,null,null,null,null,null,null,{"$f":"IF(ISBLANK(B35),\"\",0)","v":""}]
[34,null,null,null,null,null,null,null,null,null,""]
[35,null,null,null,null,null,null,null,null,null,""]
[36,null,null,null,null,null,null,null,null,null,""]
[37,null,null,null,null,null,null,null,null,null,""]
[38,null,null,null,null,null,null,null,null,null,""]
[39,null,null,null,null,null,null,null,null,null,""]
[40,null,null,null,null,null,null,null,null,null,""]
[41,null,null,null,null,null,null,null,null,null,""]
[42,null,null,null,null,null,null,null,null,null,""]
[43,null,null,null,null,null,null,null,null,null,""]
[44,null,null,null,null,null,null,null,null,null,""]
[45,null,null,null,null,null,null,null,null,null,""]
[46,null,null,null,null,null,null,null,null,null,""]
[47,null,null,null,null,null,null,null,null,null,""]
[48,null,null,null,null,null,null,null,null,null,""]
[49,null,null,null,null,null,null,null,null,null,""]
[50,null,null,null,null,null,null,null,null,null,""]